bitfinex/quotes_SOLUSD_20250403
["timestamp","ask_amount","ask_price","bid_price","bid_amount"]
[1743715127713,8.73286157,116.41,116.37,26.18506808]
[1743715127921,0.28432314,116.4,116.36,26.18506808]
[1743715128520,51.92432314,116.4,116.36,26.18506808]
[1743715128718,0.28432314,116.37,116.35,26.18506808]
[1743715128924,0.28432314,116.37,116.34,41.37636808]
[1743715129335,0.28432314,116.37,116.35,26.18506808]
[1743715129848,0.28432314,116.37,116.35,34.77946808]
[1743715131256,51.64,116.39,116.35,34.77946808]
[1743715131432,0.42648471,116.38,116.35,34.77946808]
[1743715134129,86.84405279,116.38,116.31,6.4062]
[1743715134333,0.28432314,116.35,116.32,34.78196808]
[1743715134736,0.28432314,116.35,116.32,8.5969]
[1743715134936,0.14216157,116.34,116.3,8.5984]
[1743715135135,0.14216157,116.34,116.3,34.78346808]
[1743715135818,0.28432314,116.33,116.3,34.78346808]
[1743715136862,20.0,116.43,116.34,1.6331]
[1743715137154,7.9983,116.44,116.34,1.6331]
[1743715137155,1.6079,116.44,116.41,26.18506808]
[1743715137447,20.0,116.46,116.41,26.18506808]
[1743715137657,26.18506808,116.45,116.4,26.18506808]
[1743715137951,51.64,116.43,116.39,33.86506808]
[1743715138154,0.14216157,116.42,116.38,34.77756808]
[1743715138324,0.42648471,116.42,116.38,34.77756808]
[1743715138653,0.42648471,116.42,116.38,8.5925]
[1743715138858,0.28432314,116.42,116.38,34.77756808]
[1743715139956,0.42648471,116.42,116.38,34.77756808]
[1743715140459,0.42648471,116.42,116.38,26.18506808]
[1743715140955,0.42648471,116.4,116.36,34.77866808]
[1743715142156,0.42648471,116.4,116.38,26.18506808]
[1743715142948,0.14216157,116.4,116.38,26.18506808]
[1743715143134,0.14216157,116.4,116.39,26.18506808]
[1743715143528,0.14216157,116.42,116.4,8.591]
[1743715143729,0.42648471,116.42,116.4,34.77606808]
[1743715145761,51.64,116.44,116.41,26.18506808]
[1743715146079,0.14216157,116.45,116.42,26.18506808]
[1743715146247,0.42648471,116.45,116.42,26.18506808]
[1743715147134,0.28432314,116.45,116.42,34.77426808]
[1743715147678,51.64,116.47,116.43,26.18506808]
[1743715147879,0.14216157,116.46,116.45,26.18506808]
[1743715148247,0.42648471,116.46,116.45,26.18506808]
[1743715148450,0.28432314,116.46,116.45,26.18506808]
[1743715149065,0.14216157,116.48,116.45,26.18506808]
[1743715149373,0.42648471,116.48,116.46,26.18506808]
[1743715149877,0.14216157,116.48,116.46,26.18506808]
[1743715150681,0.14216157,116.48,116.45,8.5869]
[1743715150682,0.42648471,116.48,116.45,34.77196808]
[1743715150992,125.48640165,116.48,116.43,34.77366808]
[1743715151275,151.30640165,116.48,116.43,34.77366808]
[1743715151460,90.71613357,116.48,116.43,34.77366808]
[1743715151660,116.90120165,116.48,116.44,26.18506808]
[1743715151863,116.90120165,116.48,116.43,34.77366808]
[1743715152279,125.48640165,116.48,116.43,34.77366808]
[1743715152965,151.30640165,116.48,116.43,26.18506808]
[1743715153677,151.30640165,116.48,116.43,34.77386808]
[1743715153978,151.30640165,116.48,116.43,26.18506808]
[1743715154678,151.30640165,116.48,116.42,8.5895]
[1743715154879,151.30640165,116.48,116.43,26.18506808]
[1743715155873,125.48640165,116.48,116.43,26.18506808]
[1743715156080,72.06648471,116.48,116.44,26.18506808]
[1743715156285,0.14216157,116.49,116.45,26.18506808]
[1743715156577,0.14216157,116.49,116.46,26.18506808]
[1743715156953,0.42648471,116.49,116.46,26.18506808]
[1743715157659,0.42648471,116.49,116.46,34.77136808]
[1743715159181,0.42648471,116.49,116.46,8.5863]
[1743715159387,53.84570165,116.49,116.44,26.18506808]
[1743715160889,53.84570165,116.49,116.44,34.77286808]
[1743715161062,27.66063357,116.49,116.45,26.18506808]
[1743715161466,27.66063357,116.49,116.44,8.5878]
[1743715161664,27.66063357,116.49,116.45,26.18506808]
[1743715162085,0.14216157,116.47,116.44,26.18506808]
[1743715165501,0.14216157,116.47,116.44,34.77316808]
[1743715168595,0.14216157,116.47,116.45,26.18506808]
[1743715169702,0.28432314,116.46,116.45,16.73635374]
[1743715170910,0.42648471,116.48,116.45,25.32345374]
[1743715173309,0.42648471,116.48,116.46,16.73635374]
[1743715174502,0.42648471,116.48,116.45,25.32345374]
[1743715175884,9.01178471,116.48,116.44,33.00415374]
[1743715176278,0.14216157,116.46,116.41,29.1548]
[1743715176587,0.14216157,116.46,116.43,16.73635374]
[1743715177501,0.28432314,116.45,116.43,16.73635374]
[1743715178701,0.28432314,116.45,116.42,16.73635374]
[1743715179603,0.28432314,116.45,116.42,25.32585374]
[1743715179797,0.28432314,116.45,116.43,16.73635374]
[1743715180908,0.28432314,116.45,116.43,25.32455374]
[1743715182488,0.28432314,116.45,116.42,25.32555374]
[1743715184006,0.28432314,116.45,116.42,8.5892]
[1743715184208,0.28432314,116.45,116.42,25.32555374]
[1743715185697,0.28432314,116.45,116.42,8.5892]
[1743715187109,0.28432314,116.45,116.42,25.32555374]
[1743715192123,71.78216157,116.44,116.4,16.73635374]
[1743715193395,71.78216157,116.44,116.4,25.32705374]
[1743715194223,0.28432314,116.42,116.4,25.32705374]
[1743715194397,0.28432314,116.42,116.4,16.73635374]
[1743715194600,0.42648471,116.42,116.4,16.73635374]
[1743715194794,0.42648471,116.42,116.39,25.32765374]
[1743715195114,0.14216157,116.4,116.39,25.32765374]
[1743715196197,0.42648471,116.42,116.39,25.32765374]
[1743715196404,0.42648471,116.42,116.39,8.5913]
[1743715196613,0.42648471,116.42,116.39,25.32765374]
[1743715197419,60.65608471,116.42,116.39,25.32765374]
[1743715198016,80.65608471,116.42,116.39,16.73635374]
[1743715198219,80.65608471,116.42,116.35,8.5947]
[1743715198220,0.28432314,116.39,116.35,8.5947]
[1743715198433,0.28432314,116.39,116.35,25.33105374]
[1743715198599,8.87612314,116.39,116.35,25.33105374]
[1743715198806,60.51612314,116.39,116.35,25.33105374]
[1743715199008,60.51612314,116.39,116.36,16.73635374]
[1743715200415,0.28432314,116.39,116.38,16.73635374]
[1743715200604,0.14216157,116.4,116.38,16.73635374]
[1743715200798,0.14216157,116.4,116.39,16.73635374]
[1743715201203,51.64,116.41,116.39,16.73635374]
[1743715201204,0.28432314,116.41,116.39,16.73635374]
[1743715201405,0.28432314,116.41,116.4,16.73635374]
[1743715202238,0.28432314,116.41,116.4,25.32735374]
[1743715204304,0.14216157,116.42,116.4,25.32735374]
[1743715204502,0.42648471,116.42,116.4,25.32735374]
[1743715205525,0.14216157,116.42,116.4,25.32735374]
[1743715205705,18.37825374,116.45,116.41,16.73635374]
[1743715205913,0.14216157,116.45,116.43,16.73635374]
[1743715206524,0.42648471,116.45,116.43,16.73635374]
[1743715206823,0.28432314,116.45,116.43,16.73635374]
[1743715207129,0.14216157,116.45,116.43,16.73635374]
[1743715207703,0.28432314,116.45,116.43,25.32515374]
[1743715207909,0.42648471,116.45,116.43,25.32515374]
[1743715211333,0.42648471,116.45,116.43,16.73635374]
[1743715211630,0.42648471,116.45,116.42,25.32545374]
[1743715212332,9.01388471,116.45,116.41,25.32625374]
[1743715213732,0.14216157,116.43,116.41,25.32625374]
[1743715215133,0.42648471,116.45,116.42,16.73635374]
[1743715216735,0.42648471,116.45,116.43,16.73635374]
[1743715216917,0.14216157,116.47,116.43,16.73635374]
[1743715217119,0.28432314,116.47,116.44,8.5881]
[1743715217318,9.01238471,116.47,116.43,25.32475374]
[1743715217812,0.14216157,116.45,116.43,25.32475374]
[1743715218423,0.14216157,116.45,116.44,16.73635374]
[1743715219346,3.3493794,116.45,116.44,16.73635374]
[1743715219632,3.3493794,116.45,116.44,25.32445374]
[1743715220538,0.14216157,116.45,116.44,25.32445374]
[1743715222241,3.20743615,116.46,116.44,25.32445374]
[1743715222537,3.34959772,116.46,116.45,16.73635374]
[1743715223139,0.14216157,116.46,116.45,16.73635374]
[1743715224542,0.14216157,116.46,116.45,25.32365374]
[1743715236472,1.6419,116.48,116.45,25.32365374]
[1743715236755,0.42648471,116.48,116.46,16.73635374]
[1743715237430,0.14216157,116.5,116.47,16.73635374]
[1743715237637,0.14216157,116.5,116.46,16.73635374]
[1743715237638,0.14216157,116.51,116.49,16.73635374]
[1743715237941,0.42648471,116.51,116.49,16.73635374]
[1743715238447,0.14216157,116.51,116.49,16.73635374]
[1743715238669,0.42648471,116.51,116.49,16.73635374]
[1743715239433,52.06648471,116.51,116.49,16.73635374]
[1743715244067,51.64,116.56,116.5,16.73635374]
[1743715244248,0.14216157,116.55,116.53,16.73635374]
[1743715244451,0.42648471,116.55,116.53,16.73635374]
[1743715244649,0.42648471,116.55,116.52,16.73635374]
[1743715244845,0.14216157,116.55,116.52,16.73635374]
[1743715245867,0.42648471,116.55,116.52,16.73635374]
[1743715246077,9.00718471,116.55,116.52,16.73635374]
[1743715247977,0.42648471,116.55,116.52,16.73635374]
[1743715248366,9.00658471,116.55,116.52,16.73635374]
[1743715248695,20.42648471,116.53,116.46,154.66641496]
[1743715248976,37.16283845,116.53,116.47,16.2459]
[1743715249158,37.16283845,116.53,116.49,16.73635374]
[1743715249583,20.42648471,116.53,116.49,16.73635374]
[1743715250275,29.00858471,116.53,116.49,16.73635374]
[1743715250973,45.74493845,116.53,116.49,16.73635374]
[1743715251268,0.14216157,116.49,116.46,16.73635374]
[1743715252395,0.28432314,116.48,116.46,16.73635374]
[1743715252759,0.14216157,116.47,116.41,9.2517]
[1743715252965,0.14216157,116.47,116.43,16.73635374]
[1743715253682,0.14216157,116.47,116.41,17.8416]
[1743715253683,0.14216157,116.47,116.44,16.73635374]
[1743715254293,0.28432314,116.45,116.44,16.73635374]
[1743715256689,0.14216157,116.45,116.41,16.2499]
[1743715256860,0.14216157,116.45,116.42,16.73635374]
[1743715259091,0.14216157,116.43,116.42,16.73635374]
[1743715260368,0.14216157,116.43,116.41,32.98655374]
[1743715262286,80.2269,116.46,116.41,16.2502]
[1743715262493,0.42648471,116.45,116.42,16.73635374]
[1743715263596,0.42648471,116.45,116.42,25.32585374]
[1743715264589,0.42648471,116.45,116.43,16.73635374]
[1743715265891,0.14216157,116.46,116.44,16.73635374]
[1743715266063,0.42648471,116.46,116.44,16.73635374]
[1743715266566,0.42648471,116.46,116.45,16.73635374]
[1743715266567,0.14216157,116.46,116.45,16.73635374]
[1743715266773,0.14216157,116.48,116.45,16.73635374]
[1743715266973,0.14216157,116.49,116.46,16.73635374]
[1743715267359,0.42648471,116.49,116.46,16.73635374]
[1743715268688,0.28432314,116.49,116.46,16.73635374]
[1743715269588,0.42648471,116.49,116.46,25.32275374]
[1743715270489,0.14216157,116.51,116.48,25.32145374]
[1743715270690,0.42648471,116.51,116.48,25.32145374]
[1743715272790,0.14216157,116.5,116.46,25.32295374]
[1743715273869,8.72606157,116.5,116.46,25.32295374]
[1743715276785,0.14216157,116.5,116.46,25.32295374]
[1743715276965,0.42648471,116.51,116.46,25.32295374]
[1743715277169,0.42648471,116.51,116.47,16.73635374]
[1743715277785,0.14216157,116.49,116.47,16.73635374]
[1743715278193,0.14216157,116.49,116.47,25.32205374]
[1743715279289,8.5837,116.5,116.47,25.32205374]
[1743715279594,0.14216157,116.49,116.47,25.32205374]
[1743715280279,10.1727,116.53,116.47,25.32205374]
[1743715280492,0.14216157,116.52,116.5,16.73635374]
[1743715280872,3.62251287,116.52,116.5,16.73635374]
[1743715282391,3.33818973,116.52,116.5,25.31995374]
[1743715282579,0.14216157,116.52,116.5,25.31995374]
[1743715282978,0.14216157,116.52,116.5,16.73635374]
[1743715284090,0.14216157,116.53,116.5,25.31975374]
[1743715284696,51.78216157,116.53,116.5,25.31975374]
[1743715284900,0.14216157,116.53,116.5,25.31975374]
[1743715286898,0.14216157,116.53,116.51,30.0]
[1743715287206,0.14216157,116.53,116.51,46.73635374]
[1743715289604,0.14216157,116.53,116.51,30.0]
[1743715290108,0.14216157,116.53,116.51,55.31915374]
[1743715290408,0.14216157,116.53,116.52,16.73635374]
[1743715290781,36.73635374,116.58,116.52,16.73635374]
[1743715290987,0.14216157,116.57,116.54,16.73635374]
[1743715291284,0.28432314,116.57,116.54,16.73635374]
[1743715291703,0.42648471,116.57,116.54,16.73635374]
[1743715291904,0.42648471,116.57,116.53,16.73635374]
[1743715292220,0.14216157,116.58,116.55,16.73635374]
[1743715292603,0.42648471,116.58,116.55,16.73635374]
[1743715292821,0.14216157,116.58,116.55,16.73635374]
[1743715296020,8.71996157,116.58,116.55,16.73635374]
[1743715296234,0.28432314,116.57,116.54,16.73635374]
[1743715297109,0.28432314,116.57,116.53,16.73635374]
[1743715297304,0.14216157,116.56,116.51,38.5825]
[1743715297510,0.14216157,116.56,116.52,16.73635374]
[1743715297717,0.14216157,116.56,116.51,38.5825]
[1743715297903,0.14216157,116.56,116.53,16.73635374]
[1743715298221,0.28432314,116.55,116.53,16.73635374]
[1743715299434,0.28432314,116.55,116.53,25.31775374]
[1743715300021,0.14216157,116.56,116.53,25.31775374]
[1743715300022,0.42648471,116.56,116.54,16.73635374]
[1743715301323,8.5789,116.57,116.54,16.73635374]
[1743715301522,30.2256,116.58,116.54,16.73635374]
[1743715302020,30.2256,116.58,116.54,25.31695374]
[1743715302197,60.2174,116.59,116.55,16.73635374]
[1743715303125,60.2174,116.59,116.55,25.31605374]
[1743715303329,0.14216157,116.58,116.55,25.31605374]
[1743715307026,51.64,116.57,116.53,16.73635374]
[1743715309012,60.2191,116.57,116.53,16.73635374]
[1743715309410,60.2191,116.57,116.53,25.31765374]
[1743715310632,0.14216157,116.6,116.56,16.73635374]
[1743715311009,0.42648471,116.6,116.56,16.73635374]
[1743715311627,0.14216157,116.6,116.56,16.73635374]
[1743715312023,0.42648471,116.6,116.56,16.73635374]
[1743715312324,0.42648471,116.6,116.56,25.31525374]
[1743715312830,9.00278471,116.6,116.56,25.31525374]
[1743715313127,60.64278471,116.6,116.56,25.31525374]
[1743715315034,52.06648471,116.6,116.56,25.31525374]
[1743715315241,0.42648471,116.6,116.56,25.31525374]
[1743715316830,0.42648471,116.6,116.57,16.73635374]
[1743715317740,0.42648471,116.6,116.57,25.31475374]
[1743715322142,0.42648471,116.6,116.56,16.73635374]
[1743715322540,60.64278471,116.6,116.56,16.73635374]
[1743715327142,0.14216157,116.58,116.56,25.31515374]
[1743715327748,0.14216157,116.58,116.56,8.5788]
[1743715328342,0.14216157,116.58,116.56,16.73635374]
[1743715330247,0.14216157,116.58,116.56,25.31505374]
[1743715331858,51.92432314,116.58,116.55,16.73635374]
[1743715332051,68.66067688,116.58,116.53,32.95775374]
[1743715333646,0.14216157,116.56,116.53,32.95775374]
[1743715337335,77.09711531,116.57,116.53,16.2214]
[1743715337528,51.92432314,116.56,116.52,25.31815374]
[1743715337729,68.66067688,116.56,116.52,8.5818]
[1743715338348,0.14216157,116.54,116.52,8.5818]
[1743715339152,0.14216157,116.54,116.52,25.31815374]
[1743715339352,0.14216157,116.55,116.51,32.95895374]
[1743715339539,0.14216157,116.55,116.52,16.73635374]
[1743715340324,0.14216157,116.55,116.52,25.31825374]
[1743715340633,0.14216157,116.55,116.53,16.73635374]
[1743715341147,3.20748468,116.54,116.53,16.73635374]
[1743715342649,0.14216157,116.55,116.53,16.73635374]
[1743715342828,0.14216157,116.55,116.53,25.31765374]
[1743715343229,51.92432314,116.58,116.54,16.73635374]
[1743715343565,0.14216157,116.57,116.54,16.73635374]
[1743715344453,3.20650321,116.56,116.54,16.73635374]
[1743715344951,3.20650321,116.56,116.55,8.58]
[1743715347766,3.20650321,116.56,116.54,8.5804]
[1743715348434,8.72066157,116.57,116.54,8.5804]
[1743715349967,77.09701531,116.57,116.52,22.96395374]
[1743715350162,77.09701531,116.57,116.52,16.73635374]
[1743715350958,77.09701531,116.57,116.52,25.31815374]
[1743715351161,0.14216157,116.55,116.52,25.31815374]
[1743715356564,51.64,116.55,116.52,8.5818]
[1743715357968,0.14216157,116.53,116.52,8.5818]
[1743715358551,3.20743265,116.54,116.52,8.5818]
[1743715358751,3.20743265,116.54,116.52,25.31815374]
[1743715359761,0.14216157,116.54,116.52,25.31815374]
[1743715360067,51.64,116.56,116.52,25.31815374]
[1743715360272,0.14216157,116.55,116.53,16.73635374]
[1743715361052,0.14216157,116.55,116.52,25.31815374]
[1743715364770,0.14216157,116.55,116.52,8.5818]
[1743715365152,8.72216157,116.55,116.52,8.5818]
[1743715365553,0.14216157,116.55,116.52,25.31815374]
[1743715365760,3.20761729,116.54,116.52,25.31815374]
[1743715367176,0.14216157,116.55,116.52,25.31815374]
[1743715370187,68.37635374,116.57,116.52,25.31815374]
[1743715370364,0.14216157,116.56,116.52,25.31815374]
[1743715370560,0.42648471,116.56,116.52,25.31815374]
[1743715370860,68.80283845,116.56,116.52,8.5818]
[1743715371062,0.14216157,116.54,116.52,8.5818]
[1743715375267,3.21151797,116.53,116.52,8.5818]
[1743715376806,3.21151797,116.53,116.52,25.31815374]
[1743715377506,0.14216157,116.56,116.52,25.31815374]
[1743715378810,3.21328723,116.55,116.52,25.31815374]
[1743715379601,3.21328723,116.54,116.52,8.5818]
[1743715381303,25.45791531,116.56,116.52,8.5818]
[1743715381776,0.14216157,116.56,116.52,25.31815374]
[1743715382480,3.21380134,116.55,116.52,25.31815374]
[1743715383675,3.21380134,116.55,116.52,8.5818]
[1743715383902,3.21380134,116.54,116.52,8.5818]
[1743715384983,3.21380134,116.54,116.52,25.31815374]
[1743715385508,0.14216157,116.56,116.52,25.31815374]
[1743715386318,8.72146157,116.56,116.52,25.31815374]
[1743715386490,3.21414807,116.55,116.52,25.31815374]
[1743715387208,3.21414807,116.55,116.54,16.73635374]
[1743715387420,3.21414807,116.55,116.54,24.37635374]
[1743715387997,0.14216157,116.58,116.54,24.37635374]
[1743715388192,0.14216157,116.58,116.55,16.73635374]
[1743715388406,0.14216157,116.58,116.56,8.5792]
[1743715389008,0.14216157,116.58,116.56,25.31555374]
[1743715389316,3.21204206,116.57,116.56,25.31555374]
[1743715392019,3.21204206,116.57,116.54,7.64]
[1743715392020,3.21204206,116.57,116.55,25.31635374]
[1743715393017,0.14216157,116.58,116.55,25.31635374]
[1743715396712,0.14216157,116.6,116.56,16.73635374]
[1743715397918,0.14216157,116.6,116.57,16.73635374]
[1743715398126,3.2056185,116.59,116.57,16.73635374]
[1743715399130,3.2056185,116.59,116.57,25.31465374]
[1743715399325,0.14216157,116.6,116.57,25.31465374]
[1743715400934,0.14216157,116.6,116.57,8.5783]
[1743715401429,0.14216157,116.6,116.57,8.5784]
[1743715411739,8.71856157,116.6,116.56,8.5788]
[1743715412638,0.14216157,116.6,116.56,8.5788]
[1743715413345,0.14216157,116.6,116.56,25.31515374]
[1743715419821,0.14216157,116.6,116.56,15.31515374]
[1743715421135,0.14216157,116.6,116.56,23.89395374]
[1743715422345,0.14216157,116.6,116.56,45.34205374]
[1743715425652,0.14216157,116.6,116.56,52.96205374]
[1743715432053,0.14216157,116.6,116.56,37.6469]
[1743715432247,0.14216157,116.6,116.56,54.38325374]
[1743715432632,3.21148358,116.59,116.56,54.38325374]
[1743715434327,3.21148358,116.59,116.58,8.5778]
[1743715434531,0.14216157,116.6,116.58,8.5778]
[1743715436235,0.14216157,116.6,116.57,30.0248]
[1743715437152,3.21248865,116.59,116.57,30.0248]
[1743715438736,0.14216157,116.6,116.57,30.0248]
[1743715441056,3.21434258,116.59,116.57,30.0248]
[1743715442062,0.14216157,116.6,116.57,30.0248]
[1743715442742,0.14216157,116.6,116.57,8.5785]
[1743715443443,0.28432314,116.6,116.57,8.5785]
[1743715443644,51.56,116.57,116.54,8.5807]
[1743715443858,68.29635374,116.57,116.54,8.5807]
[1743715444252,68.29635374,116.57,116.53,8.581]
[1743715444557,51.56,116.57,116.53,8.581]
[1743715444868,0.14216157,116.55,116.53,8.581]
[1743715447250,0.14216157,116.54,116.51,8.5829]
[1743715452172,0.14216157,116.55,116.51,8.5829]
[1743715452571,0.14216157,116.55,116.51,25.31925374]
[1743715453172,0.28432314,116.54,116.51,8.5829]
[1743715453392,17.02067688,116.54,116.51,8.5829]
[1743715453554,17.02067688,116.54,116.5,8.5833]
[1743715454750,0.28432314,116.54,116.5,25.31965374]
[1743715455061,8.86522314,116.54,116.5,25.31965374]
[1743715455449,16.87851531,116.53,116.5,8.5833]
[1743715455647,0.28432314,116.52,116.48,16.73635374]
[1743715455852,0.14216157,116.5,116.47,24.35635374]
[1743715456275,0.14216157,116.5,116.48,8.5847]
[1743715456468,0.14216157,116.51,116.48,8.5847]
[1743715458285,0.14216157,116.51,116.47,25.32185374]
[1743715459374,0.14216157,116.51,116.47,25.32185374]
[1743715459881,51.70216157,116.51,116.47,25.32185374]
[1743715466983,0.28432314,116.5,116.47,8.5855]
[1743715469583,68.43851531,116.51,116.47,8.5855]
[1743715469787,68.43851531,116.51,116.47,25.32185374]
[1743715471285,0.28432314,116.5,116.47,8.5855]
[1743715471695,17.02067688,116.5,116.47,8.5855]
[1743715472189,0.28432314,116.5,116.47,8.5855]
[1743715475192,51.70216157,116.51,116.47,25.32185374]
[1743715478770,60.28506157,116.51,116.47,25.32185374]
[1743715480081,25.60437688,116.5,116.46,16.2063]
[1743715480590,0.28432314,116.5,116.46,16.2063]
[1743715481702,0.28432314,116.5,116.46,32.94265374]
[1743715482195,8.86802314,116.5,116.46,32.94265374]
[1743715482903,69.83475374,116.51,116.46,32.94265374]
[1743715483075,0.14216157,116.5,116.46,32.94265374]
[1743715483276,0.14216157,116.5,116.47,16.73635374]
[1743715484003,0.14216157,116.5,116.46,37.6728]
[1743715484173,0.14216157,116.5,116.46,54.40915374]
[1743715487896,0.14216157,116.5,116.47,16.73635374]
[1743715489011,0.14216157,116.5,116.48,8.5851]
[1743715491012,0.42648471,116.52,116.48,25.32145374]
[1743715491518,0.14216157,116.52,116.48,25.32145374]
[1743715492007,0.14216157,116.52,116.48,46.78435374]
[1743715492203,3.20662761,116.51,116.48,46.78435374]
[1743715493822,0.14216157,116.52,116.48,46.78435374]
[1743715494021,0.14216157,116.52,116.48,53.36525374]
[1743715494323,0.14216157,116.53,116.5,16.73635374]
[1743715494620,0.14216157,116.53,116.5,24.35635374]
[1743715495200,0.42648471,116.54,116.5,24.35635374]
[1743715496438,0.14216157,116.52,116.51,8.5829]
[1743715496623,3.20963551,116.53,116.51,8.5829]
[1743715497431,0.14216157,116.54,116.51,8.5829]
[1743715498127,8.72296157,116.54,116.5,32.93985374]
[1743715498313,0.14216157,116.52,116.5,7.62]
[1743715500128,51.70216157,116.52,116.5,7.62]
[1743715500322,0.14216157,116.52,116.5,7.62]
[1743715500525,8.5795,116.56,116.51,16.73635374]
[1743715500725,8.5774,116.59,116.54,16.73635374]
[1743715500910,0.14216157,116.58,116.56,16.73635374]
[1743715501220,16.73635374,116.58,116.54,7.62]
[1743715501404,0.14216157,116.56,116.54,7.62]
[1743715502411,0.14216157,116.56,116.54,16.2005]
[1743715505622,0.14216157,116.56,116.53,8.5811]
[1743715505830,8.72146157,116.56,116.53,7.62]
[1743715506829,0.14216157,116.56,116.53,16.2014]
[1743715507426,8.72136157,116.56,116.53,16.2014]
[1743715507625,0.14216157,116.57,116.54,16.73635374]
[1743715508330,0.14216157,116.57,116.55,8.58]
[1743715509034,0.42648471,116.59,116.55,8.58]
[1743715509207,0.14216157,116.59,116.55,8.58]
[1743715509414,0.14216157,116.59,116.55,25.31635374]
[1743715510316,0.42648471,116.57,116.53,39.15075374]
[1743715510632,17.16283845,116.57,116.53,14.7944]
[1743715511038,0.42648471,116.57,116.53,14.7944]
[1743715512034,9.00518471,116.57,116.53,14.7944]
[1743715513231,9.00518471,116.57,116.53,6.2132]
[1743715513540,25.74153845,116.57,116.52,24.33635374]
[1743715514732,25.74153845,116.57,116.52,32.91845374]
[1743715514931,11.77627101,116.56,116.52,32.91845374]
[1743715515636,11.77627101,116.56,116.52,25.31845374]
[1743715516336,11.77627101,116.56,116.51,34.46035374]
[1743715516337,28.51262475,116.56,116.51,34.46035374]
[1743715516519,35.81248731,116.55,116.5,39.03105374]
[1743715516842,0.14216157,116.55,116.53,16.73635374]
[1743715517029,0.14216157,116.55,116.52,16.73635374]
[1743715518435,0.14216157,116.56,116.52,25.31815374]
[1743715518643,25.59917688,116.57,116.52,25.31815374]
[1743715518837,0.28432314,116.57,116.52,25.31815374]
[1743715519338,8.86282314,116.57,116.52,25.31815374]
[1743715519722,0.28432314,116.57,116.52,25.31815374]
[1743715520343,0.14216157,116.55,116.52,25.31815374]
[1743715521042,0.28432314,116.57,116.52,25.31815374]
[1743715521724,0.14216157,116.57,116.54,16.73635374]
[1743715522035,0.14216157,116.59,116.55,16.73635374]
[1743715522636,0.14216157,116.59,116.56,8.5792]
[1743715525039,16.87851531,116.61,116.56,25.31555374]
[1743715525956,25.45431531,116.61,116.56,8.5792]
[1743715526455,0.14216157,116.59,116.56,8.5792]
[1743715528245,0.14216157,116.6,116.56,16.73635374]
[1743715531341,0.14216157,116.6,116.56,25.31485374]
[1743715533448,0.14216157,116.61,116.57,16.73635374]
[1743715533828,0.14216157,116.61,116.58,7.6]
[1743715534537,16.87851531,116.61,116.58,7.6]
[1743715535339,25.45431531,116.61,116.58,7.6]
[1743715536242,9.00158471,116.62,116.58,16.1777]
[1743715536449,25.73793845,116.62,116.58,16.1777]
[1743715537147,25.73793845,116.62,116.58,7.6]
[1743715537656,0.14216157,116.6,116.58,16.1776]
[1743715539430,16.73635374,116.62,116.58,16.1776]
[1743715539752,0.14216157,116.61,116.58,16.1776]
[1743715540950,8.71776157,116.61,116.58,16.1776]
[1743715541132,0.14216157,116.61,116.58,16.1776]
[1743715549643,8.71776157,116.61,116.58,7.6]
[1743715549842,8.71776157,116.61,116.58,16.1777]
[1743715550959,0.14216157,116.59,116.58,7.6]
[1743715551138,0.14216157,116.59,116.55,32.91595374]
[1743715554566,0.14216157,116.59,116.56,16.73635374]
[1743715554768,0.14216157,116.59,116.56,25.31555374]
[1743715556354,8.71926157,116.59,116.56,16.73635374]
[1743715559671,8.71926157,116.59,116.55,32.91595374]
[1743715564778,3.20731166,116.58,116.55,32.91595374]
[1743715565978,3.20731166,116.57,116.55,32.91595374]
[1743715567273,8.71926157,116.59,116.55,32.91595374]
[1743715567876,0.14216157,116.61,116.57,16.73635374]
[1743715568666,0.14216157,116.61,116.58,16.73635374]
[1743715569081,8.71776157,116.61,116.58,16.73635374]
[1743715569378,3.21134651,116.6,116.58,25.31405374]
[1743715570079,3.21134651,116.59,116.58,25.31405374]
[1743715570258,3.21134651,116.59,116.58,16.73635374]
[1743715570771,3.21134651,116.59,116.57,25.31445374]
[1743715571581,8.71776157,116.61,116.57,25.31445374]
[1743715573173,3.21158512,116.6,116.57,25.31445374]
[1743715573673,3.21158512,116.6,116.57,8.5781]
[1743715574588,3.21158512,116.59,116.57,8.5781]
[1743715576080,25.45411531,116.61,116.57,8.5781]
[1743715576286,8.71776157,116.61,116.57,25.31445374]
[1743715577391,3.2115949,116.6,116.57,25.31445374]
[1743715578782,3.2115949,116.59,116.57,25.31445374]
[1743715579190,0.14216157,116.58,116.55,8.58]
[1743715580169,3.2115949,116.57,116.55,8.58]
[1743715581392,0.14216157,116.58,116.55,8.58]
[1743715582175,51.56,116.61,116.55,25.31635374]
[1743715582388,16.87851531,116.6,116.55,25.31635374]
[1743715583167,3.2113693,116.59,116.55,25.31635374]
[1743715584274,11.7884693,116.59,116.55,25.31635374]
[1743715584475,3.2113693,116.58,116.55,25.31635374]
[1743715585689,3.2113693,116.57,116.55,25.31635374]